Cogmind - Beta 14 @@@ ROGUE MODE // 2024.08.16 @ 22:39:56 Player: szymekc Result: Destroyed by H-71 Marshal with Heavy Mass Driver Performance ------------- Evolutions (5) 2500 Regions Visited (8) 1600 Robots Destroyed (117) 585 Value Destroyed (3678) 3678 Prototype IDs (26) 520 Alien Tech Used (0) 0 Bonus (169) 169 TOTAL SCORE: 9052 Bonus ------- High Alert Combat Kills 35 Follower Combat Kills 68 Registered with UFD 300 Friendly Fire -234 Cogmind --------- Core Integrity 0/1000 Matter 17/300 Energy 180/180 System Corruption 0% Temperature Cool (0) Movement Hovering (350) Ox7 Location -5/Factory Parts ------- > --- POWER (2) -------- Meta Core > --- PROPULSION (5+1) - Gyrokinetic Inverter > --- UTILITY (8+1) ---- Huge Storage Unit Core Analyzer > --- WEAPON (2+1) ----- (None) > --- INVENTORY (25) --- Experimental Terrain Scanner Advanced Terrain Scan Processor Seismic Detector Hacking Suite Makeshift Hacking Suite Long-range Proton Cannon Heavy Particle Cannon Precision Assault Rifle Mini Assault Cannon Missile Launcher Long-range Missile Launcher CPS Tube (2) CPS Tube (2) Multitool DRS Beacon (Ready) Botcube Peak State ------------ > --- POWER ------------ Improved Deuterium Engine Backup Power VII > --- PROPULSION ------- Light Treads Light Treads Light Treads Light Treads Light Treads > --- UTILITY ---------- Advanced Heat Sink Cooling System Huge Storage Unit Seismic Detector Improved Transmission Jammer Improved Light Armor Plating Improved Medium Armor Plating Improved Shield Generator > --- WEAPON ----------- Improved EM Pulse Cannon Long-range Proton Cannon > --- INVENTORY -------- Meta Core Scrap Suit Scrap Suit Experimental Terrain Scanner Advanced Terrain Scan Processor Seismic Detector Core Analyzer Hacking Suite Makeshift Hacking Suite Heavy Particle Cannon Precision Assault Rifle Precision Assault Rifle Mini Assault Cannon Mini Assault Cannon Proton Missile Launcher Missile Launcher Long-range Missile Launcher CPS Tube CPS Tube Multitool Power Sword DRS Beacon Botcube [Rating: 63] Favorites ----------- Power Improved Deuterium Engine Engine Improved Deuterium Engine Power Core Backup Power VII Propulsion Light Treads Treads Light Treads Leg Aluminum Leg Wheel Wheel Hover Unit Gyrokinetic Inverter Utility Huge Storage Unit Device Improved Shield Generator Storage Huge Storage Unit Processor Core Analyzer Hackware Hacking Suite Protection Improved Light Armor Plating Weapon Heavy Mace Energy Gun Subdweller Laser Energy Cannon Subdweller Beam Cannon Ballistic Gun Assault Rifle Ballistic Cannon Battle Cannon Launcher Missile Launcher Special Weapon Multitool Impact Weapon Heavy Mace Slashing Weapon Power Sword Build | -11 -10 -10 -8 -7 -7 -7 -7 -5 ------- Run | Yrd Mat Sub Mat Fac Sto Rec Scr Fac Slots Evolved 10 | . . . 4 2 . . . 4 Power 1 | . . . . 1 . . . . Propulsion 3 | . . . 2 . . . . 1 Utility 6 | . . . 2 1 . . . 3 Weapon . | . . . . . . . . . Parts Attached 148 | 4 4 34 28 20 20 7 8 23 Power 13 | . 1 2 2 4 2 . 1 1 Engine 7 | . 1 2 1 2 1 . . . Core 6 | . . . 1 2 1 . 1 1 Reactor . | . . . . . . . . . Propulsion 29 | 2 1 4 8 3 2 1 4 4 Treads 20 | 2 1 2 6 . 2 1 4 2 Leg . | . . . . . . . . . Wheel 8 | . . 2 2 3 . . . 1 Hover 1 | . . . . . . . . 1 Flight . | . . . . . . . . . Utility 32 | 1 . 5 7 4 3 3 1 8 Device 17 | 1 . 2 3 3 2 . . 6 Storage 1 | . . 1 . . . . . . Processor 2 | . . . . . . 1 . 1 Hackware 1 | . . . . 1 . . . . Protection 11 | . . 2 4 . 1 2 1 1 Artifact . | . . . . . . . . . Weapon 74 | 1 2 23 11 9 13 3 2 10 Energy Gun 10 | 1 . 4 4 . 1 . . . Energy Cannon 11 | . . 1 . 4 2 . . 4 Ballistic Gun 27 | . 2 8 6 2 6 1 . 2 Ballistic Cannon 8 | . . 2 . 2 2 . . 2 Launcher 4 | . . . . . 2 . 1 1 Special Weapon 10 | . . 8 . . . 1 1 . Impact Weapon 3 | . . . 1 1 . 1 . . Slashing Weapon 1 | . . . . . . . . 1 Piercing Weapon . | . . . . . . . . . Special Melee Weapon . | . . . . . . . . . Unidentified Prototypes 6 | . . 1 1 1 3 . . . Corrupted Parts 2 | . . . . . 1 . 1 . System Corruption 7 | . . . . . 2 . 5 . Parts Lost 30 | . 1 1 2 2 3 . . 21 Power 3 | . . . . . 1 . . 2 Propulsion 13 | . 1 1 2 2 1 . . 6 Utility 10 | . . . . . 1 . . 9 Weapon 4 | . . . . . . . . 4 Highest Loss Streak 20 | . 1 1 2 2 2 . . 20 To Critical Strikes 1 | . . . . 1 . . . . Average Slot Usage (%) 95 | . 99 91 93 97 98 99 100 85 Engine 10 | . 14 14 4 3 12 15 8 4 Core 3 | . . . 4 10 1 . 5 4 Treads 22 | . 27 20 20 19 14 15 26 23 Wheel 6 | . . 7 14 10 15 15 3 . Device 12 | . 14 5 13 15 21 15 15 22 Storage 7 | . 14 6 9 7 7 7 7 5 Protection 9 | . . 7 9 7 6 14 15 8 Energy Gun 2 | . 4 4 9 . . . . . Energy Cannon 4 | . . 9 1 9 3 . . 5 Ballistic Gun 6 | . 23 8 5 3 6 13 . . Special Weapon 3 | . . 3 1 . . . 7 1 Impact Weapon 2 | . . . . 1 . . 7 1 Peak Build Rating 63 | 7 7 16 31 48 46 44 45 63 Average Rating 28 | 6 6 12 27 40 43 41 41 55 On Entrance 25 | 6 7 7 16 31 44 39 37 45 Naked Turns . | . . . . . . . . . Heaviest Build 129 | 15 15 100 117 121 127 115 115 129 Greatest Support 100 | 40 40 40 60 30 30 30 80 100 Greatest Overweight (x) 11 | . . 6 10 5 4 3 11 9 Average Overweight (x) 2 | . . 1 4 3 3 3 2 1 Largest Inventory Capacity 25 | 8 8 25 25 25 25 25 25 25 Average Capacity 19 | 8 8 13 25 25 25 25 25 25 Most Carried 25 | 6 8 21 25 25 25 25 25 25 Average Carried 17 | 5 7 8 23 24 24 25 23 23 Final Capacity 25 | 8 8 25 25 25 25 25 25 25 Final Carried 25 | 6 8 21 25 25 25 25 25 16 Class Distribution -------------------- 54% | Scavenger-Mutant 35% | Mutant 6% | Subdweller-Mutant Dominant Class ---------------- Mutant | -10/Materials Mutant | -10/Subcaves Subdweller-Mutant | -8/Materials Scavenger-Mutant | -7/Factory Scavenger-Mutant | -7/Storage Scavenger-Mutant | -7/Recycling Scavenger-Mutant | -7/Scraptown Scavenger-Mutant | -5/Factory Resources | -11 -10 -10 -8 -7 -7 -7 -7 -5 ----------- Run | Yrd Mat Sub Mat Fac Sto Rec Scr Fac Matter Collected 3048 | 270 507 611 409 344 429 313 80 85 Remotely . | . . . . . . . . . Salvage Created 4180 | 127 791 370 1047 510 574 450 . 311 Parts 243 | 13 55 19 56 26 25 25 . 24 Haulers Intercepted 7 | . 2 . 3 1 1 . . . Recyclers Shooed 2 | . 1 . . . . . . 1 Parts Field Recycled . | . . . . . . . . . Retrieved Matter . | . . . . . . . . . Parts Self-Destructed 8 | . . 8 . . . . . . Prevented . | . . . . . . . . . Kills | -11 -10 -10 -8 -7 -7 -7 -7 -5 ------- Run | Yrd Mat Sub Mat Fac Sto Rec Scr Fac Combat Hostiles Destroyed 84 | . 23 10 23 9 11 2 . 6 Guns 55 | . 23 5 22 1 2 2 . . Cannons 16 | . . 5 1 3 4 . . 3 AOE 7 | . . . . 3 3 . . 1 Classes Destroyed 18 | 2 5 2 1 2 4 1 . 1 Worker 6 | . 1 . 2 . 2 . . 1 Builder 4 | . . . . . . 1 . 3 Tunneler 4 | 4 . . . . . . . . Hauler 7 | . 2 . 3 1 1 . . . Recycler 6 | 1 . . 1 . 1 3 . . Mechanic 1 | . . . . . 1 . . . Operator 1 | . . . . 1 . . . . Watcher 2 | . 1 . . . 1 . . . Swarmer 19 | . 9 . 6 4 . . . . Grunt 36 | . 14 . 13 3 5 . . 1 Brawler 1 | . . . . . 1 . . . Duelist 2 | . . . . . 2 . . . Protector 1 | . . . . . 1 . . . Sentry 10 | . . 1 3 2 2 2 . . Hunter 5 | . . . 1 . . . . 4 Programmer 1 | . . . . 1 . . . . Heavy 1 | . . . . . . . . 1 Subdweller 10 | . . 10 . . . . . . Best Kill Streak 9 | 3 5 2 7 3 9 2 . 4 Combat Bots Only 6 | . 3 2 5 3 6 1 . 2 Max Kills in Single Turn 4 | 1 2 1 2 3 3 1 . 4 Gunslinging 1 | . 1 . 1 . . . . . Exploded 3 | . . . . 3 3 . . 1 Melee . | . . . . . . . . . Uniques/NPCs Destroyed . | . . . . . . . . . Combat | -11 -10 -10 -8 -7 -7 -7 -7 -5 -------- Run | Yrd Mat Sub Mat Fac Sto Rec Scr Fac Hostile Shots Fired 743 | . 98 57 219 102 98 45 . 124 Missed 260 | . 31 15 72 56 43 17 . 26 Damage Taken 8138 | . 652 900 1545 495 709 151 . 3686 Core 1633 | . 90 88 209 112 85 6 . 1043 Absorbed by Shields 1099 | . . . 384 172 262 68 . 213 Ignored by Resistances 74 | . . . 74 . . . . . Core Remaining (%) 65 | 100 . 28 62 . . . 71 . Volleys Fired 361 | 10 81 70 73 29 46 9 . 43 Largest 2 | 2 2 2 2 2 2 2 . 2 Hottest 180 | 70 70 180 140 69 132 56 . 150 Shots Fired 627 | 20 161 104 144 31 82 21 . 64 Gun 418 | 20 161 35 143 4 26 21 . 8 Cannon 169 | . . 36 1 27 50 . . 55 Launcher 7 | . . . . . 6 . . 1 Special 33 | . . 33 . . . . . . Kinetic 379 | 10 137 58 58 4 52 21 . 39 Thermal 168 | 10 24 46 86 . 2 . . . Explosive 6 | . . . . . 6 . . . Electromagnetic 74 | . . . . 27 22 . . 25 Robot Hit Streak 28 | 8 11 15 11 12 19 8 . 28 Robot Miss Streak 7 | 5 7 2 4 3 3 1 . 2 Penetration Max . | . . . . . . . . . Secondary Targets 9 | . 2 . 7 . . . . . Max Gunslinging Chain 1 | . 1 . 1 . . . . . Shots Hit Robots 402 | 9 93 54 102 23 52 15 . 54 Core Hits 198 | 6 42 16 56 15 35 10 . 18 Critical Kills 2 | . . 1 . . . 1 . . Critical Parts Destroyed . | . . . . . . . . . Critical Strikes 12 | . 3 3 1 1 3 1 . . Burn 3 | . 3 . . . . . . . Destroy 5 | . . 3 1 . . 1 . . Blast 3 | . . . . . 3 . . . Corrupt 1 | . . . . 1 . . . . Melee Attacks 7 | . . . 6 . . . . 1 Impact 6 | . . . 6 . . . . . Slashing 1 | . . . . . . . . 1 Piercing . | . . . . . . . . . Sneak Attacks 2 | . . . 1 . . . . 1 Combat Hostiles . | . . . . . . . . . Follow-up Attacks . | . . . . . . . . . Damage Inflicted 10724 | 108 1238 1133 2421 1012 2460 275 . 2077 Guns 4943 | 108 1234 505 2291 55 353 275 . 122 Cannons 3410 | . . 604 30 597 956 . . 1223 Explosions 2147 | . . . . 360 1151 . . 636 Melee 196 | . . . 100 . . . . 96 Ramming 4 | . 4 . . . . . . . Kinetic 5087 | 96 1095 890 1036 55 766 275 . 874 Thermal 2536 | 12 139 243 1285 360 . . . 497 Explosive 1151 | . . . . . 1151 . . . Electromagnetic 1750 | . . . . 597 543 . . 610 Impact 100 | . . . 100 . . . . . Slashing 96 | . . . . . . . . 96 Piercing . | . . . . . . . . . Highest Corruption 5 | . 3 3 . 1 5 5 5 . Average Corruption 3 | . 2 3 . 1 3 5 5 . Corruption Purged . | . . . . . . . . . Corruption Blocked . | . . . . . . . . . Effects 128 | . 19 71 . 8 8 22 . . Message Errors 32 | . . 20 . 2 2 8 . . Matter Fused 35 | . 10 15 . 2 3 5 . . Heat Flow Errors 16 | . 1 12 . 1 1 1 . . Energy Discharges 15 | . 4 9 . 1 . 1 . . Parts Fused 3 | . . 3 . . . . . . Data Loss (minor) 12 | . 2 5 . 1 2 2 . . Data Loss (major) 4 | . . 2 . 1 . 1 . . Misfires 8 | . . 5 . . . 3 . . Alerts 2 | . 1 . . . . 1 . . Weapon Failures 1 | . 1 . . . . . . . Overload Shots . | . . . . . . . . . Overflow Damage 132 | . . . . 33 34 . . 65 Projectiles 21 | . . . . . 21 . . . Explosions 111 | . . . . 33 13 . . 65 Melee . | . . . . . . . . . Knockbacks 9 | . . . . . 5 . . 4 Impact . | . . . . . . . . . Kinetic 8 | . . . . . 5 . . 3 Secondary 1 | . . . . . . . . 1 Self-Inflicted Damage 422 | . . . . 154 . . . 268 Shots 6 | . . . . 2 . . . 4 Rammed 2 | . 2 . . . . . . . Targets Rammed 2 | . 2 . . . . . . . Kicked . | . . . . . . . . . Crushed . | . . . . . . . . . Highest Temperature 272 | 54 264 272 123 82 229 254 . 124 Average Temperature 50 | 20 37 99 43 12 47 134 . 56 Received Heat Transfer 1495 | . 234 135 842 62 168 48 . 6 Siege Activations . | . . . . . . . . . Robots Corrupted 6 | . . . . 2 2 . . 2 Combat Hostiles 6 | . . . . 2 2 . . 2 Parts Fried 13 | . . . . 7 3 . . 3 Impact Corruptions . | . . . . . . . . . Robots Melted . | . . . . . . . . . Combat Hostiles . | . . . . . . . . . Parts Melted 5 | . 1 2 2 . . . . . Heat Transferred 3199 | 37 629 346 1537 200 . . . 450 Parts Sabotaged . | . . . . . . . . . Parts Stolen . | . . . . . . . . . Parts Stripped . | . . . . . . . . . Power Chain Reactions 2 | . . . . 1 . . . 1 Alert | -11 -10 -10 -8 -7 -7 -7 -7 -5 ------- Run | Yrd Mat Sub Mat Fac Sto Rec Scr Fac Peak Influence 466 | 25 466 . 344 228 432 214 . 203 Initial 156 | . 16 . . 156 57 89 . . Average 159 | 14 229 . 139 124 342 110 . 27 Maximum Alert Level 2 | . 2 . 1 1 2 1 . 1 Low Security (%) 65 | 100 37 . 71 82 3 91 . 99 Level 1 29 | . 57 . 28 17 50 8 . . Level 2 5 | . 5 . . . 46 . . . Level 3 . | . . . . . . . . . Level 4 . | . . . . . . . . . Level 5 . | . . . . . . . . . High Security . | . . . . . . . . . Max Security . | . . . . . . . . . Squads Dispatched 24 | . 7 . 5 3 6 . . 3 Investigation 5 | . 5 . . . . . . . Extermination 1 | . . . . 1 . . . . Reinforcement 11 | . 2 . 2 2 2 . . 3 Assault 3 | . . . . . 3 . . . Garrison 4 | . . . 3 . 1 . . . Intercept . | . . . . . . . . . Searches Triggered . | . . . . . . . . . Construction Impeded 1 | . . . . . . . . 1 Haulers Reinforced 2 | . . . . 1 1 . . . Active Scanning Responses . | . . . . . . . . . Cargo Convoy Interrupts . | . . . . . . . . . Stealth | -11 -10 -10 -8 -7 -7 -7 -7 -5 --------- Run | Yrd Mat Sub Mat Fac Sto Rec Scr Fac Distress Signals 7 | . 3 . 3 . 1 . . . Communications Jammed . | . . . . . . . . . Distress Signals . | . . . . . . . . . Times Spotted 141 | . 34 11 43 15 25 2 . 11 Peak Tracking Total 13 | . 5 2 13 4 9 1 . 4 Tactical Retreats 8 | . 4 . . 1 1 . . 2 Traps | -11 -10 -10 -8 -7 -7 -7 -7 -5 ------- Run | Yrd Mat Sub Mat Fac Sto Rec Scr Fac Traps Triggered 8 | . 5 . . . 1 . . 2 Indirectly . | . . . . . . . . . Trap Hack Attempts . | . . . . . . . . . Triggered . | . . . . . . . . . Disarmed . | . . . . . . . . . Reprogrammed . | . . . . . . . . . Reused . | . . . . . . . . . Traps Extracted . | . . . . . . . . . Installed . | . . . . . . . . . Triggered . | . . . . . . . . . Machines | -11 -10 -10 -8 -7 -7 -7 -7 -5 ---------- Run | Yrd Mat Sub Mat Fac Sto Rec Scr Fac Machines Disabled 17 | . . 1 1 5 4 1 . 5 Max in Single Turn 5 | . . 1 1 4 1 1 . 5 Garrison Access 1 | . . . . . 1 . . . Machines Repaired . | . . . . . . . . . Machines Dismantled . | . . . . . . . . . Machines Sabotaged . | . . . . . . . . . Overloaded Fab Kills . | . . . . . . . . . Hacking | -11 -10 -10 -8 -7 -7 -7 -7 -5 --------- Run | Yrd Mat Sub Mat Fac Sto Rec Scr Fac Machines Accessed 35 | . 6 2 7 5 1 8 6 . Terminals 21 | . 4 . 7 4 1 5 . . Fabricators 1 | . . . . 1 . . . . Repair Stations . | . . . . . . . . . Recycling Units 5 | . 2 . . . . 3 . . Scanalyzers . | . . . . . . . . . Garrison Access . | . . . . . . . . . Total Hacks 120 | . 14 6 18 11 1 22 48 . Successful 86 | . 6 6 10 4 1 11 48 . Failed 34 | . 8 . 8 7 . 11 . . Catastrophic 9 | . . . 3 2 . 4 . . Database Lockouts . | . . . . . . . . . Manual 39 | . 4 . 14 1 1 19 . . Terminals 55 | . 10 . 18 9 1 17 . . Fabricators 2 | . . . . 2 . . . . Repair Stations . | . . . . . . . . . Recycling Units 9 | . 4 . . . . 5 . . Scanalyzers . | . . . . . . . . . Garrison Access . | . . . . . . . . . Terminal Hacks 66 | . 3 6 5 2 1 1 48 . Record 44 | . . 5 . . . . 39 . Robot Analysis 11 | . 1 . 1 . . . 9 . Prototype ID Bank 1 | . 1 . . . . . . . Open Door 1 | . . . . . 1 . . . Branch Access Points 1 | . . . . 1 . . . . Terminal Index 1 | . . . . . . 1 . . Unreport Threat 2 | . . . 1 1 . . . . Locate Traps 2 | . 1 . 1 . . . . . Zone Layout 2 | . . . 2 . . . . . Derelict Proto ID Bank 1 | . . 1 . . . . . . Fabricator Hacks 1 | . . . . 1 . . . . Network Status 1 | . . . . 1 . . . . Repair Station Hacks . | . . . . . . . . . Recycling Unit Hacks 2 | . 1 . . . . 1 . . Retrieve Components 2 | . 1 . . . . 1 . . Scanalyzer . | . . . . . . . . . Garrison Access Hacks . | . . . . . . . . . Unauthorized Hacks 17 | . 2 . 5 1 . 9 . . Terminals 11 | . . . 5 . . 6 . . Botnet 2 | . . . . . . 2 . . Skim 9 | . . . 5 . . 4 . . Fabricators 1 | . . . . 1 . . . . Liberate 1 | . . . . 1 . . . . Repair Stations . | . . . . . . . . . Recycling Units 5 | . 2 . . . . 3 . . Tunnel 5 | . 2 . . . . 3 . . Scanalyzers . | . . . . . . . . . Garrison Access . | . . . . . . . . . Data Cores Recovered 1 | . . . . 1 . . . . Used 1 | . . . . 1 . . . . Hacking Detections 22 | . 4 . 7 5 . 6 . . Full Trace Events 3 | . 1 . . . . 2 . . Feedback Events . | . . . . . . . . . Feedback Blocked . | . . . . . . . . . Robot Schematics Acquired . | . . . . . . . . . Robots Built . | . . . . . . . . . Authchips . | . . . . . . . . . Time . | . . . . . . . . . Total Robot Build Rating . | . . . . . . . . . Part Schematics Acquired . | . . . . . . . . . Parts Built . | . . . . . . . . . Authchips . | . . . . . . . . . Time . | . . . . . . . . . Total Part Build Rating . | . . . . . . . . . Parts Repaired . | . . . . . . . . . Time . | . . . . . . . . . Parts Recycled . | . . . . . . . . . Recycled Matter . | . . . . . . . . . Retrieved Matter . | . . . . . . . . . Retrieved Components 17 | . 8 . . . . 9 . . Parts Scanalyzed . | . . . . . . . . . Part Schematics Acquired . | . . . . . . . . . Parts Damaged . | . . . . . . . . . Bothacking | -11 -10 -10 -8 -7 -7 -7 -7 -5 ------------ Run | Yrd Mat Sub Mat Fac Sto Rec Scr Fac Used RIF Installer . | . . . . . . . . . Robots Hacked . | . . . . . . . . . Non-combat . | . . . . . . . . . Combat . | . . . . . . . . . Robot Hacks Applied . | . . . . . . . . . Relay Couplers Released 2 | . . . . . 2 . . . Machine Destruction 2 | . . . . . 2 . . . Fabnet Peak Effective % . | . . . . . . . . . Robots Rewired . | . . . . . . . . . Allies Hacked . | . . . . . . . . . Hacks Repelled . | . . . . . . . . . Allies | -11 -10 -10 -8 -7 -7 -7 -7 -5 -------- Run | Yrd Mat Sub Mat Fac Sto Rec Scr Fac Total Allies 8 | . . 3 . 3 2 . . . Largest Group 3 | . . 3 1 3 2 . . . Highest-Rated Group 62 | . . 57 19 48 62 . . . Highest-Rated Ally 31 | . . 19 19 16 31 . . . Total Orders 5 | . . . . . 5 . . . EXPLORE 4 | . . . . . 4 . . . RETURN 1 | . . . . . 1 . . . Ally Attacks 28 | . . . 11 3 14 . . . Total Damage 474 | . . . 182 16 276 . . . Kills 2 | . . . 1 . 1 . . . Allies Corrupted 1 | . . . . . 1 . . . Allies Melted . | . . . . . . . . . Intel | -11 -10 -10 -8 -7 -7 -7 -7 -5 ------- Run | Yrd Mat Sub Mat Fac Sto Rec Scr Fac Robot Analysis Total 11 | . 1 . 1 . . . 9 . Derelict Logs Recovered 8 | . . 3 . . . . 5 . Drone Launches 20 | . . . . . 20 . . . Drone Recoveries 4 | . . . . . 4 . . . Exploration | -11 -10 -10 -8 -7 -7 -7 -7 -5 ------------- Run | Yrd Mat Sub Mat Fac Sto Rec Scr Fac Turns Passed 13328 | 93 1454 3853 1131 1036 469 759 3928 605 Spaces Moved 6512 | 35 623 2126 515 643 214 541 1635 180 Core . | . . . . . . . . . Treads 3355 | 33 623 1228 10 . . . 1294 167 Legs 2 | 2 . . . . . . . . Wheels 3151 | . . 898 505 643 214 541 341 9 Hover 4 | . . . . . . . . 4 Flight . | . . . . . . . . . Fastest Speed 120 | 120 160 135 150 131 131 131 131 215 Average Speed 177 | 157 160 163 156 144 132 131 237 241 Slowest Speed 350 | 160 160 340 240 160 143 131 245 350 Overloaded Moves . | . . . . . . . . . Propulsion Burnouts . | . . . . . . . . . Robots Hopped . | . . . . . . . . . Cave-ins Triggered . | . . . . . . . . . Exploration Rate (%) 56 | 3 93 86 56 18 48 98 94 9 Regions Visited 8 Branch Regions 4 Pre-discovered Areas 8 | . 2 1 1 . . 3 1 . Known Exits Taken 3 | . . . 1 1 1 . . . Unknown Exits Taken 5 | 1 1 1 . . . 1 1 . Scrap Searched 7 | . . 2 . . . . 5 . Spaces Dug 10 | . . 5 4 . 1 . . . Terrain Destroyed 146 | . . 7 4 32 54 . . 49 Melee 4 | . . . 4 . . . . . Projectile 16 | . . 7 . . 9 . . . AOE 126 | . . . . 32 45 . . 49 Terrain Rammed . | . . . . . . . . . Walls Destroyed . | . . . . . . . . . Machines Disabled . | . . . . . . . . . Actions | -11 -10 -10 -8 -7 -7 -7 -7 -5 --------- Run | Yrd Mat Sub Mat Fac Sto Rec Scr Fac Total 7555 | 52 919 2327 691 718 314 574 1680 280 Wait 306 | . 197 37 19 5 12 9 . 27 Move 6504 | 34 622 2125 514 642 213 540 1634 180 Hop . | . . . . . . . . . Pick Up 98 | 2 7 27 26 10 3 3 18 2 Fast Attach 44 | 1 1 9 2 4 10 4 3 10 Attach 26 | . 1 3 8 3 2 . 1 8 Detach 4 | . . 2 . . 2 . . . Swap 78 | 3 2 22 18 13 8 3 4 5 Drop 102 | 2 6 23 20 12 11 6 20 2 Fire 361 | 10 81 70 73 29 46 9 . 43 Melee 7 | . . . 6 . . . . 1 Ram . | . . . . . . . . . Kick . | . . . . . . . . . Crush 2 | . 2 . . . . . . . Escape Stasis 2 | . . . . . . . . 2 Rewire . | . . . . . . . . . Trap . | . . . . . . . . . Miscellaneous 21 | . . 9 5 . 7 . . . Route ------- -11/Scrapyard -10/Materials (discovered 6 exits: [*Mat x3] / [*Min x2] / *Sub) -10/Subcaves (discovered 2 exits: *Mat x2) -8/Materials (discovered 3 exits: *Fac x3) -7/Factory (discovered 4 exits: Fac / *Sto / Low x2) -7/Storage -7/Recycling (discovered 2 exits: [*Fac] / *Scr) -7/Scraptown (discovered 2 exits: [*Fac x2]) -5/Factory History --------- Turn | Location | Event 1 | -11/Scrapyard | Discovered new exit (range 1) 94 | -11/Scrapyard | Entered Materials 278 | -10/Materials | Discovered new exit (range 9) 304 | -10/Materials | Build established: Mutant 443 | -10/Materials | Discovered new exit (range 9) 672 | -10/Materials | Discovered new exit (range 16) 967 | -10/Materials | Discovered new exit (range 14) 1269 | -10/Materials | Discovered new exit (range 6) 1530 | -10/Materials | Discovered new exit (range 5) 1548 | -10/Materials | Entered Subcaves 1555 | -10/Subcaves | Learned location of Recycling (-7) 1605 | -10/Subcaves | A swath of the cavern ceiling suddenly collapsed 1815 | -10/Subcaves | Disturbed a concealed Subdweller 1831 | -10/Subcaves | Core integrity fell below 50% 2260 | -10/Subcaves | Build established: Scavenger-Mutant 2263 | -10/Subcaves | Shifting Twisted Machinery released Mak. Laser 2599 | -10/Subcaves | Build established: Derelict-Mutant 2703 | -10/Subcaves | Discovered new exit (range 13) 2768 | -10/Subcaves | Shifting Twisted Machinery released Mak. Thermal Plating 2912 | -10/Subcaves | Visited 4L-MR0's lab 2930 | -10/Subcaves | Found Meta Core 3001 | -10/Subcaves | Build established: Mutant 3226 | -10/Subcaves | Shifting Twisted Machinery released Humpback 3231 | -10/Subcaves | A swath of the cavern ceiling suddenly collapsed 3557 | -10/Subcaves | Discovered new exit (range 10) 3567 | -10/Subcaves | Shifting Twisted Machinery released Sub. Power Source 4098 | -10/Subcaves | Visited Clippyterm 4104 | -10/Subcaves | Learned Factory fabricator intel 4104 | -10/Subcaves | Learned Factory trap positions 4218 | -10/Subcaves | Visited triangular shrine 4230 | -10/Subcaves | Found Prototype Device 4231 | -10/Subcaves | Identified V3-11A's Pendant 4236 | -10/Subcaves | Befriended Subdweller 4389 | -10/Subcaves | Shifting Twisted Machinery released Sub. Laser 4619 | -10/Subcaves | Learned Materials terminal intel 4631 | -10/Subcaves | Befriended Subdweller 4687 | -10/Subcaves | Learned Materials trap positions 4696 | -10/Subcaves | Befriended Subdweller 5401 | -10/Subcaves | Entered Materials 5401 | -8/Materials | Accompanied by 1 ally 5401 | -8/Materials | Evolved 4 slots: Propulsion x2, Utility x2 5402 | -8/Materials | Loaded intel: 11 trap records 5403 | -8/Materials | Loaded intel: 12 terminal locations 5687 | -8/Materials | Build established: Subdweller-Mutant 5727 | -8/Materials | Discovered new exit (range 5) 5736 | -8/Materials | Garrison activated, responded to threat 6151 | -8/Materials | Learned location of 2 exits from Lower Caves 6221 | -8/Materials | Learned location of 1 exit from Storage 6279 | -8/Materials | Build established: Mutant 6283 | -8/Materials | Learned 2 Storage zone layouts 6333 | -8/Materials | Learned location of 1 exit from Lower Caves 6375 | -8/Materials | Identified exit to Factory 6447 | -8/Materials | Learned Storage security intel 6499 | -8/Materials | Learned location of Lower Caves (-7) 6532 | -8/Materials | Entered Factory 6532 | -7/Factory | Evolved 2 slots: Power x1, Utility x1 6533 | -7/Factory | Identified exit to Factory 6533 | -7/Factory | Identified exit to Lower Caves 6534 | -7/Factory | Loaded intel: 115 trap records 6535 | -7/Factory | Loaded intel: 6 fabricator locations 6580 | -7/Factory | Discovered new exit (range 14) 6593 | -7/Factory | Build established: Scavenger-Mutant 7339 | -7/Factory | Identified exit to Storage 7568 | -7/Factory | Entered Storage 7569 | -7/Storage | Identified exit to Recycling 7576 | -7/Storage | Garrison activated, responded to threat 7685 | -7/Storage | Lost 9 allies 7809 | -7/Storage | Lost 3 allies 7937 | -7/Storage | Met a pair of Derelict thieves 8031 | -7/Storage | Used back door to open Recycling access 8037 | -7/Storage | Entered Recycling 8114 | -7/Recycling | Scanned before Scraplab entrance 8513 | -7/Recycling | Discovered new exit (range 16) 8764 | -7/Recycling | Entered Scraplab 8794 | -7/Recycling | Discovered new exit (range 2) 8796 | -7/Recycling | Entered Scraptown 8796 | -7/Scraptown | System corruption cleaned by C-Scrubber 8967 | -7/Scraptown | Delivered V3-11A's Pendant to T0-NE2 in exchange for information 8991 | -7/Scraptown | Heard Great Nut preacher, LISTEN AND RECITE! 9471 | -7/Scraptown | Scanned Subdweller tech in exchange for log data 9476 | -7/Scraptown | Learned Research stockpile data 9478 | -7/Scraptown | Learned Research emergency access door positions 9481 | -7/Scraptown | Learned Research interactive machine intel 9483 | -7/Scraptown | Learned 8 Research zone layouts 9522 | -7/Scraptown | Discovered new exit (range 9) 9718 | -7/Scraptown | Visited Awakened 9782 | -7/Scraptown | Visited Cave Peace 9866 | -7/Scraptown | Visited UFD Registry 9866 | -7/Scraptown | Registered with UFD as "Metaltalker" 9938 | -7/Scraptown | Visited Shadow of the Wyrm 9974 | -7/Scraptown | Visited Spacefarers 10085 | -7/Scraptown | Visited Red Mages 10330 | -7/Scraptown | Visited Cyclists 10363 | -7/Scraptown | Entered Cyclist Reading Room 10438 | -7/Scraptown | Visited IN-MT5's Study 11010 | -7/Scraptown | Visited Curators Association 11091 | -7/Scraptown | Visited Botcube Research 11247 | -7/Scraptown | Visited LU-1G1's Boring Crew 11382 | -7/Scraptown | Delivered Scrap Shield to a Scientist 11646 | -7/Scraptown | Visited Scrap Suit Storage 11691 | -7/Scraptown | Visited Infowarlord's Domain 11709 | -7/Scraptown | Found Exp. Terrain Scanner 11830 | -7/Scraptown | Visited Derelict Rescue Squad 11858 | -7/Scraptown | Found DRS Beacon 11924 | -7/Scraptown | Visited Observation Area 12020 | -7/Scraptown | Visited Analyses Database 12080 | -7/Scraptown | Visited Chapter 10 12232 | -7/Scraptown | Found Botcube 12624 | -7/Scraptown | Found Scrap Suit 12628 | -7/Scraptown | Found Scrap Suit 12717 | -7/Scraptown | Discovered new exit (range 3) 12724 | -7/Scraptown | Entered Factory 12724 | -5/Factory | Evolved 4 slots: Propulsion x1, Utility x3 13291 | -5/Factory | Core integrity fell below 50% 13312 | -5/Factory | Core integrity fell below 20% 13312 | -5/Factory | Attached Meta Core, gained temporary slots: Propulsion, Utility, Weapon 13329 | -5/Factory | Destroyed by H-71 Marshal with Heavy Mass Driver Last Messages --------------- 13314_ ALERT: Construction progress impeded, dispatching reinforcements to local area. 13314_ U-05 Engineer lays Concrete. 13314_ U-05 Engineer builds a Wall. 13315_ Penetrated by Slug. 13315_ Proton Missile Launcher destroyed. 13315_ Knocked back. 13316_ Acquired 10 matter. 13317_ U-05 Engineer lays Concrete. 13318_ U-05 Engineer builds a Wall. 13319_ U-05 Engineer lays Concrete. 13320_ Knocked back. 13320_ U-05 Engineer lays Concrete. 13323_ U-05 Engineer builds a Wall. 13324_ U-05 Engineer lays Concrete. 13325_ R-10 Processor collects Corrupted Wheel. 13325_ U-05 Engineer lays Concrete. 13328_ R-10 Processor collects Structural Scanner. 13328_ U-05 Engineer lays Concrete. 13328_ Penetrated by Slug. Map ----- +----------------------------------------------------+ | ???????????????????????????? T" ^ # | | ??????????????????????????"" "" % ^ / | | ???????????????????????? """ # | | ?????????????????????? # | | ?????????????????????? % # | | ???????????????????????####??########%% # | | ??????????????????????? ??######?# # | | ???????????????????????? ##""""####% # | | ??????????????????????""" " # % # | | ??????????????????????""" " # % % + | | ??????????????????????""" ; #%% # | | ??????????????????"" """" #% % # | | ??????????????????"" """" ! #% # | | ??????????????? """" """" H =%=# % # | | ??????????????? # %% % | | ????????????????? # % | | ???????????????????Y""" u R/ | | ???????????????????"""" | R # | | ??????????????############ h # | | ??????????????#! ! % # #### ### | | ??????????????# # #??# #?? | | ??????????????? """ !% % # #??# #? | | ????????????????""" ! " !*; # #??# # | | ??????????????# """ "R *; # #??# # | | ??????????????# ! "" *; # #??# # | | ??????????????# =@ ; # #??#?# | | ???????????????#+#########%;;;;;;;;## #????# | | ?????????????????????????# ;;;;###? #????# | | ?????????????????????????# # ; ?????# | | ?????????????????????????##### u ???????# ? | | ?????????????????????????????? ????????#?? | | ?????????????????????????????? ?????????? | | ?????????????????????????????? ?????????? | | ?????????????????????????????? #####?????????? | | ?????????????????????????????? #?????????????? | | ?????????????????????????????? #?????????????? | | ??????????????????????????????? +?????????????? | | ??????????????????????????????? ?????????????????? | | ?????????????????????????????????????????????????? | | ?????????????????????????????????????????????????? | | ?????????????????????????????????????????????????? | | ?????????????????????????????????????????????????? | | ?????????????????????????????????????????????????? | | ?????????????????????????????????????????????????? | | ?????????????????????????????????????????????????? | | ?????????????????????????????????????????????????? | | ?????????????????????????????????????????????????? | | ?????????????????????????????????????????????????? | | ?????????????????????????????????????????????????? | | ?????????????????????????????????????????????????? | +----------------------------------------------------+ Best States ------------- Heat Dissipation 81 Energy Generation 29 Energy Capacity 390 Matter Stores 300 Matter Capacity 300 Sight Range 16 Terrain Scan Density 10 Jamming Range 14 Armor Coverage 800 Resistance: KI 20 Evasion (%) 40 Core Analysis 6 Recoil Reduction 5 Offensive Hacking 10 Item Schematics ----------------- None Robot Schematics ------------------ None Fabricated ------------ Nothing Alien Tech Used ----------------- None Achievements -------------- None Challenges ------------ None Game ------ Seed CloakImpulseSpoofer Manual? 0 Play Time 01:22:17 Cumulative 340.5 hours Start 2024.08.16 @ 21:15:39 End 2024.08.16 @ 22:39:56 Sessions 1 Manual Loads 0 Difficulty Rogue Special Mode None Game No. 126 Rogue 124 Adventurer 2 Explorer 0 Win Type - Total 16 Types 6/0/8/1/0/0/0/1/0 Lore% 70 Gallery% 83 Achievement% 75 Wizard Run 0 Options --------- Layout 0 ASCII 0 Keyboard 0 Movement Numpad Keybinds 0 Fullscreen 2 Font 24/Smallcaps Map View 76x50 Zoom Use 0% Tactical HUD 1 Map Filters NONE Filters NONE Steam 1 RUN: cc68a3f0-5201-4d63-83b9-273ed4f28a66